fUST/lending_fUST_20250309
["ID","MTS","AMOUNT","RATE_DAILY","PERIOD"]
[355742714,1741524549897,-543.67153819,0.00030998,2]
[355742715,1741524549922,-574.17491454,0.00030998,2]
[355742716,1741524549946,-574.17491454,0.00030998,2]
[355742717,1741524549970,-574.17491454,0.00030998,2]
[355742718,1741524549992,-574.17491454,0.00030998,2]
[355742719,1741524550015,-574.17491454,0.00030998,2]
[355742720,1741524550038,-574.17491454,0.00030998,2]
[355742721,1741524550060,-574.17491454,0.00030998,2]
[355742722,1741524550084,-574.17491454,0.00030998,2]
[355742723,1741524550107,-574.17491454,0.00030998,2]
[355742724,1741524550131,-574.17491454,0.00030998,2]
[355742725,1741524550156,-574.17491454,0.00030998,2]
[355742726,1741524550180,-574.17491454,0.00030998,2]
[355742727,1741524550204,-574.17491454,0.00030998,2]
[355742728,1741524550226,-574.17491454,0.00030998,2]
[355742729,1741524550249,-574.17491454,0.00030998,2]
[355742730,1741524550273,-574.17491454,0.00030998,2]
[355742731,1741524550296,-574.17491454,0.00030998,2]
[355742732,1741524550319,-574.17491454,0.00030998,2]
[355742733,1741524550342,-574.17491454,0.00030998,2]
[355742734,1741524550366,-574.17491454,0.00030998,2]
[355742735,1741524550389,-574.17491454,0.00030998,2]
[355742736,1741524550413,-574.17491454,0.00030998,2]
[355742737,1741524550436,-574.17491454,0.00030998,2]
[355742738,1741524550459,-574.17491454,0.00030998,2]
[355742739,1741524550483,-574.17491454,0.00030998,2]
[355742740,1741524550507,-574.17491454,0.00030998,2]
[355742741,1741524550531,-574.17491454,0.00030998,2]
[355742742,1741524550562,-574.17491454,0.00030998,2]
[355742743,1741524550593,-574.17491454,0.00030998,2]
[355742744,1741524550619,-574.17491454,0.00030998,2]
[355742745,1741524550644,-574.17491454,0.00030998,2]
[355742746,1741524550668,-574.17491454,0.00030998,2]
[355742747,1741524550692,-574.17491454,0.00030998,2]
[355742748,1741524550716,-574.17491454,0.00030998,2]
[355742749,1741524550740,-574.17491454,0.00030998,2]
[355742750,1741524550763,-597.64225725,0.00030998,2]
[355742751,1741524550788,-650.0,0.00030998,2]
[355742752,1741524550813,-500.0,0.00030998,2]
[355742753,1741524550842,-497.69333894,0.00030998,2]
[355742754,1741524550868,-333.72723587,0.00030998,2]
[355742755,1741524550892,-500.0,0.00030998,2]
[355742756,1741524550918,-499.86649046,0.00030998,2]
[355742757,1741524550943,-500.0,0.00030998,2]
[355742758,1741524550964,-234.949217,0.00030998,2]
[355742759,1741524550987,-239.07928462,0.00030998,2]
[355742760,1741524551009,-522.39296613,0.00030998,2]
[355742761,1741524551031,-500.0,0.00031,10]
[355742762,1741524551054,-500.0,0.00031,10]
[355742763,1741524551079,-500.0,0.00031,10]
[355742764,1741524551101,-500.0,0.00031,10]
[355742765,1741524551123,-500.0,0.00031,10]
[355742766,1741524551145,-500.0,0.00031,10]
[355742767,1741524551167,-188.96858921,0.00031,10]
[355742768,1741524551188,-500.0,0.00031,10]
[355742769,1741524551208,-214.83544598,0.00031057,5]
[355742770,1741524551228,-500.0,0.00031057,2]
[355742771,1741524551248,-501.17988011,0.00031057,5]
[355742772,1741524551268,-500.0,0.00031057,5]
[355742773,1741524551288,-500.0,0.00031057,2]
[355742774,1741524551308,-500.0,0.00031057,5]
[355742775,1741524551330,-500.0,0.00031057,5]
[355742776,1741524551350,-482.01245608,0.00031057,5]
[355742777,1741524551370,-500.0,0.00031286,5]
[355742778,1741524551390,-513.87258484,0.00031286,5]
[355742779,1741524551413,-504.326413,0.00031286,2]
[355742780,1741524551434,-179.35,0.0003138,2]
[355742781,1741524551453,-568.3855173,0.00031388,2]
[355742782,1741524551473,-150.0,0.00031391,7]
[355742783,1741524551493,-150.0,0.00031391,7]
[355742784,1741524551513,-150.0,0.00031391,7]
[355742785,1741524551533,-500.0,0.000314,5]
[355742786,1741524551553,-500.0,0.000314,5]
[355742787,1741524551573,-159.89,0.000314,5]
[355742788,1741524551593,-600.0,0.00032273,2]
[355742789,1741524551612,-700.0000001,0.0003288,2]
[355742790,1741524551631,-221.36399739,0.00032892,2]
[355742791,1741524551650,-600.0,0.00032937,2]
[355742792,1741524551670,-9805.07155841,0.00032949,2]
[355742793,1741524551689,-618.75308564,0.00032949,2]
[355742794,1741524551709,-5763.69037644,0.00032959,2]
[355742795,1741524551996,-500.0,0.00031286,5]
[355742796,1741524552017,-4236.30962356,0.00032959,2]
[355742797,1741524552038,-10402.43834006,0.00032959,2]
[355742798,1741524553091,-500.01899374,0.00031286,5]
[355742799,1741524553112,-500.0,0.00031286,2]
[355742800,1741524553132,-10693.77122626,0.00032959,2]
[355742801,1741524553160,-3803.79043368,0.00032959,2]
[355742802,1741524553181,-622.2,0.00032992,2]
[355742803,1741524553201,-500.0,0.00033,5]
[355742804,1741524553220,-500.0,0.00033,5]
[355742805,1741524553241,-645.2214,0.00033047,2]
[355742806,1741524553261,-669.0945918,0.00033102,2]
[355742807,1741524553282,-693.8510917,0.00033157,2]
[355742808,1741524553302,-719.52358209,0.00033212,2]
[355742809,1741524553321,-746.14595463,0.00033267,2]
[355742810,1741524553341,-773.75335495,0.00033322,2]
[355742811,1741524553362,-560.0,0.00033374,2]
[355742812,1741524553382,-802.38222908,0.00033377,2]
[355742813,1741524553402,-832.07037156,0.00033432,2]
[355742814,1741524553422,-862.8569753,0.00033487,2]
[355742815,1741524553442,-894.78268339,0.00033542,2]
[355742816,1741524553462,-927.88964268,0.00033597,2]
[355742817,1741524553482,-962.22155946,0.00033652,2]
[355742818,1741524553502,-180.0,0.00033998,2]
[355742819,1741524553522,-783.0,0.00035932,2]
[355742820,1741524553542,-809.8824731,0.00036386,2]
[355742821,1741524553562,-1000.0,0.00036537,5]
[355742822,1741524553593,-500.0,0.00036765,5]
[355742823,1741524553623,-501.93751938,0.00036765,5]
[355742824,1741524553651,-240.22677918,0.00036765,2]
[355742825,1741524553682,-1116.74058536,0.00036879,5]
[355742826,1741524553711,-192.576,0.00036884,5]
[355742827,1741524553742,-500.0,0.00038479,5]
[355742828,1741524553770,-1097.0,0.00038687,5]
[355742829,1741524553801,-522.59928961,0.0003898,3]
[355742847,1741524555855,2363.86631188,0.00030898,2]
[355742848,1741524557361,267.43373459,0.00031286,5]
[355742849,1741524559077,-162.0,0.00041,14]
[355742850,1741524559099,-1536.0,0.00041653,5]
[355742852,1741524560683,160.04271205,0.00031286,5]
[355742853,1741524560832,2363.86631182,0.00034767,2]
[355742854,1741524561279,160.78436985,0.00031286,5]
[355742855,1741524561398,167.006,0.00036473,5]
[355742856,1741524564238,157.757,0.00036261,5]
[355742857,1741524565828,2363.86631182,0.00038636,2]
[355742858,1741524566405,502.44637538,0.00031286,5]
[355742859,1741524568310,500.0,0.00031286,5]
[355742860,1741524568361,500.0,0.00036765,5]
[355742861,1741524571149,-2363.86631182,0.00042505,28]
[355742863,1741524582416,300.0,0.0002792,2]
[355742864,1741524582929,160.0,0.00039395,2]
[355742865,1741524583885,239.07928462,0.00030998,2]
[355742866,1741524583914,234.949217,0.00030998,2]
[355742867,1741524583942,500.0,0.00030998,2]
[355742868,1741524583979,518.45426969,0.00030998,2]
[355742869,1741524584309,33.95034489,0.00036,2]
[355742870,1741524584332,166.04965511,0.00036,2]
[355742871,1741524594965,200.0,0.0004,2]
[355742872,1741524599977,200.0,0.0004,2]
[355742873,1741524603228,1738.0,0.00025,2]
[355742874,1741524605242,185.3565246,0.00032937,2]
[355742875,1741524605947,219.75382492,0.00031286,5]
[355742876,1741524607130,500.0,0.00031286,5]
[355742877,1741524607181,508.15869348,0.00036765,5]
[355742878,1741524609662,851.25916592,0.00035905,2]
[355742879,1741524609770,256.360563,0.0003589,2]
[355742880,1741524610002,256.360563,0.00041211,2]
[355742881,1741524610857,600.0,0.0003098,2]
[355742882,1741524611523,622.2,0.00031035,2]
[355742883,1741524612209,645.2214,0.0003109,2]
[355742884,1741524613023,669.0945918,0.00031145,2]
[355742885,1741524613100,200.0,0.0004,2]
[355742886,1741524613732,1094.67790384,0.000312,2]
[355742887,1741524622506,200.0,0.0004,2]
[355742888,1741524630246,197.87475,0.00035,5]
[355742928,1741524632402,-200.0,0.00042,2]
[355742930,1741524632412,-160.37195767,0.00042131,2]
[355742936,1741524632459,-1797.56126733,0.00042131,2]
[355742937,1741524632469,-181.36573647,0.00043835,120]
[355742938,1741524632499,1335.6809175,0.000419,9]
[355742942,1741524635614,500.0,0.00030998,2]
[355742943,1741524635642,500.0,0.00030998,2]
[355742944,1741524635673,500.0,0.00030998,2]
[355742945,1741524635700,500.0,0.00030998,2]
[355742946,1741524635938,500.0,0.00030998,2]
[355742947,1741524635969,500.0,0.00030998,2]
[355742948,1741524635995,500.0,0.00030998,2]
[355742949,1741524636486,500.0,0.00030998,2]
[355742950,1741524636512,500.0,0.00030998,2]
[355742951,1741524636586,500.0,0.00030998,2]
[355742952,1741524636614,500.0,0.00030998,2]
[355742953,1741524636669,500.0,0.00030998,2]
[355743048,1741524638832,-318.63426353,0.00043835,120]
[355743049,1741524638842,-200.0,0.00044,2]
[355743050,1741524638852,-500.0,0.00044383,120]
[355743051,1741524638861,-209.67003069,0.00044831,120]
[355743052,1741524638870,-550.0,0.00044846,5]
[355743053,1741524638880,-500.0,0.00044931,120]
[355743054,1741524638891,-151.0,0.00045,120]
[355743055,1741524638906,-500.0,0.00045479,120]
[355743056,1741524638917,-183.85958423,0.00045479,120]
[355743057,1741524638926,-3338.2586351,0.00045545,4]
[355743058,1741524638935,-1000.0,0.00046,120]
[355743059,1741524638945,-998.34078239,0.00046,19]
[355743106,1741524640519,-572.39045341,0.00046,19]
[355743108,1741524640529,-500.0,0.00046027,120]
[355743110,1741524640539,-500.0,0.000461,2]
[355743112,1741524640549,-500.0,0.000461,2]
[355743114,1741524640559,-500.0,0.000461,2]
[355743115,1741524640568,-500.0,0.000461,2]
[355743117,1741524640579,-500.0,0.000461,2]
[355743119,1741524640588,-500.0,0.000461,2]
[355743121,1741524640598,-500.0,0.000461,2]
[355743123,1741524640608,-500.0,0.000461,2]
[355743125,1741524640618,-500.0,0.000461,2]
[355743127,1741524640628,-500.0,0.000461,2]
[355743129,1741524640638,-506.98,0.000461,2]
[355743130,1741524640649,-1453.7791273,0.00046119,2]
[355743132,1741524640659,-32896.4554,0.00046336,14]
[355743134,1741524640670,-9805.07155841,0.00046337,4]
[355743136,1741524640679,-618.75308564,0.00046337,4]
[355743138,1741524640690,-886.76,0.00046365,10]
[355743140,1741524640700,-32446.81037525,0.00046365,4]
[355743434,1741524646274,-157.67,0.00046365,30]
[355743435,1741524646284,-16578.54741675,0.00046365,4]
[355743436,1741524646293,-3093.7654282,0.00046365,4]
[355743437,1741524646303,-500.0,0.00046373,10]
[355743438,1741524646312,-500.0,0.00046373,10]
[355743439,1741524646322,-507.05402076,0.00046373,10]
[355743440,1741524646332,-500.0,0.00046373,10]
[355743441,1741524646342,-500.0,0.00046373,10]
[355743442,1741524646351,-500.0,0.00046373,10]
[355743443,1741524646361,-500.0,0.00046373,10]
[355743444,1741524646371,-500.0,0.00046373,10]
[355743445,1741524646380,-500.0,0.00046373,10]
[355743446,1741524646390,-500.0,0.00046373,2]
[355743447,1741524646399,-280.30199711,0.00046373,2]
[355743448,1741524646408,-500.0,0.00046373,10]
[355743449,1741524646418,-166.1564816,0.00046373,10]
[355743450,1741524646428,-2363.86631182,0.00046375,28]
[355743451,1741524646438,-155.578168,0.00046375,120]
[355743452,1741524646447,-151.0,0.00046375,120]
[355743453,1741524646457,-151.0,0.00046375,120]
[355743454,1741524646466,-151.0,0.00046375,120]
[355743455,1741524646476,-151.0,0.00046375,120]
[355743456,1741524646485,-151.0,0.00046375,120]
[355743457,1741524646495,-301.574118,0.00046375,90]
[355743458,1741524646505,-895.061119,0.00046375,60]
[355743459,1741524646514,-125767.06445255,0.00046375,2]
[355743480,1741524648711,200.0,0.0004,2]
[355743481,1741524652193,500.0,0.00030997,2]
[355743482,1741524652220,280.34248424,0.00030997,2]
[355743483,1741524652333,192.21854404,0.00030998,2]
[355743484,1741524652358,500.0,0.00030998,2]
[355743485,1741524652383,164.48070893,0.00030997,2]
[355743486,1741524652409,500.0,0.00030998,2]
[355743487,1741524652553,500.0,0.00030997,2]
[355743488,1741524652691,552.538388,0.00030998,2]
[355743489,1741524652718,373.25215606,0.00030998,2]
[355743490,1741524652893,214.93854082,0.00030998,2]
[355743491,1741524653595,1825.47502176,0.00030997,2]
[355743492,1741524654229,500.0,0.00030997,2]
[355743493,1741524654270,366.28734643,0.00030997,2]
[355743494,1741524654297,1459.18767533,0.00030997,2]
[355743495,1741524655986,500.0,0.00030997,2]
[355743496,1741524656037,500.0,0.00030997,2]
[355743497,1741524656069,1825.47502176,0.00030997,2]
[355743498,1741524656329,500.0,0.00030997,2]
[355743499,1741524658258,1825.47502176,0.00030997,2]
[355743500,1741524659807,1825.47502176,0.00030997,2]
[355743501,1741524660206,1825.47502176,0.00030997,2]
[355743502,1741524660243,1825.47502176,0.00030997,2]
[355743503,1741524660280,1825.47502176,0.00030997,2]
[355743504,1741524660319,1825.47502176,0.00030997,2]
[355743505,1741524660362,1825.47502176,0.00030997,2]
[355743506,1741524660404,1825.47502176,0.00030997,2]
[355743507,1741524660442,1825.47502176,0.00030997,2]
[355743508,1741524660485,1654.51204103,0.00030997,2]
[355743509,1741524660514,170.96298073,0.00030997,2]
[355743510,1741524660554,1825.47502176,0.00030997,2]
[355743511,1741524660585,1825.47502176,0.00030997,2]
[355743512,1741524660625,1825.47502176,0.00030997,2]
[355743513,1741524660669,1825.47502176,0.00030997,2]
[355743514,1741524660712,1825.47502176,0.00030997,2]
[355743515,1741524660787,1825.47502176,0.00030997,2]
[355743516,1741524660831,1825.47502176,0.00030997,2]
[355743517,1741524660883,1825.47502176,0.00030997,2]
[355743518,1741524660933,769.91640005,0.00030997,2]
[355743519,1741524660961,1055.55862171,0.00030997,2]
[355743520,1741524660994,1825.47502176,0.00030997,2]
[355743521,1741524661069,1825.47502176,0.00030997,2]
[355743522,1741524661108,1825.47502176,0.00030997,2]
[355743523,1741524661156,1825.47502176,0.00030997,2]
[355743524,1741524661203,1825.47502176,0.00030997,2]
[355743525,1741524661252,1825.47502176,0.00030997,2]
[355743526,1741524661335,1825.47502176,0.00030997,2]
[355743527,1741524661386,1825.47502176,0.00030997,2]
[355743528,1741524661498,1825.47502176,0.00030997,2]
[355743529,1741524661543,1825.47502176,0.00030997,2]
[355743530,1741524661580,1825.47502176,0.00030997,2]
[355743531,1741524661618,1825.47502176,0.00030997,2]
[355743532,1741524661652,1825.47502176,0.00030997,2]
[355743533,1741524661688,1825.47502176,0.00030997,2]
[355743534,1741524661722,1034.00215395,0.00030997,2]
[355743535,1741524661748,791.47286781,0.00030997,2]
[355743536,1741524661783,1825.47502176,0.00030997,2]
[355743537,1741524661986,1825.47502176,0.00030997,2]
[355743538,1741524662023,1825.47502176,0.00030997,2]
[355743539,1741524662062,1825.47502176,0.00030997,2]
[355743540,1741524662145,1825.47502176,0.00030997,2]
[355743541,1741524662188,1534.41530207,0.00030997,2]
[355743542,1741524662214,291.05971969,0.00030997,2]
[355743543,1741524662245,796.266402,0.00030997,2]
[355743547,1741525007363,258.75,0.0002502,2]
[355743548,1741525016245,300.0,0.0002502,2]
[355743550,1741525065437,-788.35,0.00027909,3]
[355743551,1741525065467,-500.0,0.00027973,5]
[355743552,1741525065491,-267.17721038,0.00027973,5]
[355743553,1741525065516,-504.85966361,0.00027973,5]
[355743554,1741525065540,-260.31076706,0.00027973,5]
[355743555,1741525065565,-162.28783326,0.00027973,5]
[355743556,1741525065589,-500.0,0.00027973,5]
[355743557,1741525065614,-500.0,0.00028073,5]
[355743558,1741525065740,-1418.55757399,0.000289,5]
[355743559,1741525065764,-205.48826695,0.0002945,5]
[355743560,1741525065789,-500.0,0.0002945,5]
[355743561,1741525085366,500.84861186,0.00027973,5]
[355743562,1741525087368,501.64993421,0.00027973,3]
[355743563,1741525131027,1371.27232134,0.000289,5]
[355743564,1741525173655,650.0,0.00027973,5]
[355743566,1741525207660,500.0,0.00027973,3]
[355743567,1741525207716,505.03189623,0.00027973,5]
[355743568,1741525208706,425.6513612,0.00027973,5]
[355743569,1741525209389,500.0,0.00027973,5]
[355743573,1741525210932,187.34973568,0.0003,3]
[355743574,1741525268028,274.00214492,0.00027973,5]
[355743575,1741525268876,500.0,0.00027973,5]
[355743576,1741525295929,1325.56324402,0.000269,4]
[355743577,1741525318759,398.18,0.0003,3]
[355743578,1741525325898,500.0,0.00027444,5]
[355743579,1741525325932,500.0,0.00027444,5]
[355743580,1741525325994,460.67076102,0.00027444,3]
[355743581,1741525327608,500.0,0.00027444,5]
[355743582,1741525331940,3000.0,0.0003,3]
[355743583,1741525342363,3000.0,0.0003,3]
[355743584,1741525343377,3000.0,0.0003,3]
[355743585,1741525344408,792.74867427,0.0003,3]
[355743587,1741525364572,900.0,0.00027,3]
[355743588,1741525373876,509.25,0.00028,10]
[355743590,1741525418948,250.0,0.00024674,2]
[355743592,1741525461888,1330.58773769,0.000259,4]
[355743593,1741525512188,424.1194447,0.00024861,2]
[355743594,1741525538754,852.5464507,0.00024861,2]
[355743595,1741525615119,-1083.0025343,0.00025025,2]
[355743596,1741525615145,-2814.3571148,0.00025072,2]
[355743597,1741525615167,-182.973018,0.00025433,2]
[355743598,1741525615191,-182.973018,0.00025739,2]
[355743599,1741525615214,-300.0,0.00025788,2]
[355743600,1741525615234,-573.58507874,0.00025789,2]
[355743601,1741525627079,-439.44527046,0.00025789,2]
[355743602,1741525628008,1286.23481311,0.000269,4]
[355743603,1741525638131,-333.20113923,0.00025789,2]
[355743604,1741525651092,-533.29389833,0.00025789,2]
[355743605,1741525652121,-331.72501501,0.00025789,2]
[355743606,1741525653747,833.11,0.00026222,3]
[355743607,1741525757156,-1129.4511453,0.00025132,2]
[355743608,1741525757178,-6203.95246713,0.00025789,2]
[355743609,1741525757203,-900.0,0.00026,2]
[355743610,1741525757225,-182.973018,0.00026044,2]
[355743611,1741525757248,-300.0,0.00026131,2]
[355743612,1741525757270,-3013.25400965,0.00026132,2]
[355743613,1741525757292,-200.33276568,0.00026132,2]
[355743614,1741525757314,-625.17263383,0.00026221,2]
[355743615,1741525757335,-500.0,0.00026221,2]
[355743616,1741525757356,-500.0,0.00026221,2]
[355743617,1741525757376,-500.0,0.00026221,2]
[355743618,1741525757396,-500.0,0.00026221,2]
[355743619,1741525757416,-500.0,0.00026221,2]
[355743620,1741525757438,-500.0,0.00026221,2]
[355743621,1741525757458,-398.89291968,0.00026221,2]
[355743622,1741525757480,-500.0,0.00026221,2]
[355743623,1741525757501,-500.0,0.00026221,2]
[355743624,1741525757526,-2041.20705132,0.00026221,2]
[355743625,1741525757548,-500.0,0.00026221,2]
[355743626,1741525757569,-500.0,0.00026221,2]
[355743627,1741525757591,-500.0,0.00026221,2]
[355743628,1741525757613,-500.0,0.00026221,2]
[355743629,1741525757636,-500.0,0.00026221,2]
[355743630,1741525757661,-2041.20705132,0.00026221,2]
[355743631,1741525757683,-185.77443916,0.00026221,2]
[355743632,1741525757704,-500.0,0.00026221,2]
[355743633,1741525757729,-2041.20705132,0.00026221,2]
[355743634,1741525757752,-500.0,0.00026221,2]
[355743635,1741525757774,-500.0,0.00026221,2]
[355743636,1741525757794,-500.0,0.00026221,2]
[355743637,1741525757819,-2041.20705132,0.00026221,2]
[355743638,1741525757840,-500.0,0.00026221,2]
[355743639,1741525757862,-484.02811788,0.00026221,2]
[355743640,1741525757887,-2041.20705132,0.00026221,2]
[355743641,1741525757910,-500.0,0.00026221,2]
[355743642,1741525757932,-500.0,0.00026221,2]
[355743643,1741525757956,-2041.20705132,0.00026221,2]
[355743644,1741525757978,-500.0,0.00026221,2]
[355743645,1741525757999,-496.12107385,0.00026221,2]
[355743646,1741525758024,-2041.20705132,0.00026221,2]
[355743647,1741525758048,-2041.20705132,0.00026221,2]
[355743648,1741525758073,-2041.20705132,0.00026221,2]
[355743649,1741525758197,-2041.20705132,0.00026221,2]
[355743650,1741525758230,-2041.20705132,0.00026221,2]
[355743651,1741525758258,-2041.20705132,0.00026221,2]
[355743652,1741525758286,-2041.20705132,0.00026221,2]
[355743653,1741525758314,-2041.20705132,0.00026221,2]
[355743654,1741525758342,-2041.20705132,0.00026221,2]
[355743655,1741525758368,-2041.20705132,0.00026221,2]
[355743656,1741525758396,-2041.20705132,0.00026221,2]
[355743657,1741525758423,-2041.20705132,0.00026221,2]
[355743658,1741525758456,-2041.20705132,0.00026221,2]
[355743659,1741525758487,-2041.20705132,0.00026221,2]
[355743660,1741525758516,-2041.20705132,0.00026221,2]
[355743661,1741525758545,-2041.20705132,0.00026221,2]
[355743662,1741525758573,-2041.20705132,0.00026221,2]
[355743663,1741525758600,-2041.20705132,0.00026221,2]
[355743664,1741525758626,-2041.20705132,0.00026221,2]
[355743665,1741525758652,-2041.20705132,0.00026221,2]
[355743666,1741525758680,-2041.20705132,0.00026221,2]
[355743667,1741525758707,-2041.20705132,0.00026221,2]
[355743668,1741525758732,-2041.20705132,0.00026221,2]
[355743669,1741525758757,-2041.20705132,0.00026221,2]
[355743670,1741525758781,-2041.20705132,0.00026221,2]
[355743671,1741525758809,-2041.20705132,0.00026221,2]
[355743672,1741525758834,-2041.20705132,0.00026221,2]
[355743673,1741525758859,-2041.20705132,0.00026221,2]
[355743674,1741525758885,-2041.20705132,0.00026221,2]
[355743675,1741525758909,-2041.20705132,0.00026221,2]
[355743676,1741525758936,-2041.20705132,0.00026221,2]
[355743677,1741525758960,-2041.20705132,0.00026221,2]
[355743678,1741525758986,-2041.20705132,0.00026221,2]
[355743679,1741525759012,-2041.20705132,0.00026221,2]
[355743680,1741525759038,-2041.20705132,0.00026221,2]
[355743681,1741525759064,-2041.20705132,0.00026221,2]
[355743682,1741525759090,-2041.20705132,0.00026221,2]
[355743683,1741525759116,-2028.44950724,0.00026221,2]
[355743684,1741525759142,-2028.44950724,0.00026221,2]
[355743685,1741525759167,-2028.44950724,0.00026221,2]
[355743686,1741525759198,-2028.44950724,0.00026221,2]
[355743687,1741525759230,-2028.44950724,0.00026221,2]
[355743688,1741525759257,-2028.44950724,0.00026221,2]
[355743689,1741525759286,-2028.44950724,0.00026221,2]
[355743690,1741525759312,-2028.44950724,0.00026221,2]
[355743691,1741525759338,-2028.44950724,0.00026221,2]
[355743692,1741525759363,-2028.44950724,0.00026221,2]
[355743693,1741525759389,-2028.44950724,0.00026221,2]
[355743694,1741525759414,-2028.44950724,0.00026221,2]
[355743695,1741525759442,-2028.44950724,0.00026221,2]
[355743696,1741525759467,-2028.44950724,0.00026221,2]
[355743697,1741525759493,-2028.44950724,0.00026221,2]
[355743698,1741525759518,-2028.44950724,0.00026221,2]
[355743699,1741525759543,-2028.44950724,0.00026221,2]
[355743700,1741525759567,-2028.44950724,0.00026221,2]
[355743701,1741525759593,-2028.44950724,0.00026221,2]
[355743702,1741525759619,-2028.44950724,0.00026221,2]
[355743703,1741525759644,-2028.44950724,0.00026221,2]
[355743704,1741525759669,-2028.44950724,0.00026221,2]
[355743705,1741525759694,-2028.44950724,0.00026221,2]
[355743706,1741525759719,-2028.44950724,0.00026221,2]
[355743707,1741525759745,-2028.44950724,0.00026221,2]
[355743708,1741525759849,-2028.44950724,0.00026221,2]
[355743709,1741525759877,-2028.44950724,0.00026221,2]
[355743710,1741525759904,-2028.44950724,0.00026221,2]
[355743711,1741525759932,-2028.44950724,0.00026221,2]
[355743712,1741525759959,-2035.21100561,0.00026221,2]
[355743713,1741525759986,-2035.21100561,0.00026221,2]
[355743714,1741525760011,-2035.21100561,0.00026221,2]
[355743715,1741525760038,-2035.21100561,0.00026221,2]
[355743716,1741525760064,-2035.21100561,0.00026221,2]
[355743717,1741525760089,-2035.21100561,0.00026221,2]
[355743718,1741525760116,-2035.21100561,0.00026221,2]
[355743719,1741525760143,-2035.21100561,0.00026221,2]
[355743720,1741525760169,-2035.21100561,0.00026221,2]
[355743721,1741525760202,-2035.21100561,0.00026221,2]
[355743722,1741525760229,-2035.21100561,0.00026221,2]
[355743723,1741525760257,-2035.21100561,0.00026221,2]
[355743724,1741525760283,-2035.21100561,0.00026221,2]
[355743725,1741525760309,-2035.21100561,0.00026221,2]
[355743726,1741525760335,-2035.21100561,0.00026221,2]
[355743727,1741525760361,-2035.21100561,0.00026221,2]
[355743728,1741525760388,-2035.21100561,0.00026221,2]
[355743729,1741525760410,-57990.3139167,0.00026222,2]
[355743730,1741525760432,-851.16615856,0.00026222,2]
[355743731,1741525760454,-28995.1569583,0.00026326,2]
[355743732,1741525760476,-425.58307928,0.00026326,2]
[355743733,1741525760499,-24900.0,0.00026336,2]
[355743734,1741525760521,-182.973018,0.00026349,2]
[355743735,1741525760542,-166.66666666,0.00026487,2]
[355743736,1741525760564,-217.42,0.00026587,2]
[355743737,1741525760586,-401.0872615,0.00026597,2]
[355743738,1741525760609,-182.973018,0.00026654,2]
[355743739,1741525760630,-250.0,0.00026676,2]
[355743740,1741525760651,-500.0,0.00026945,2]
[355743741,1741525760673,-182.973018,0.00026959,2]
[355743742,1741525760696,-501.61592095,0.0002712,2]
[355743743,1741525760717,-500.0,0.0002712,2]
[355743744,1741525760740,-500.0,0.00027397,2]
[355743745,1741525760763,-500.0,0.00027397,2]
[355743746,1741525760786,-500.0,0.00027397,2]
[355743747,1741525760810,-500.0,0.00027397,2]
[355743748,1741525760839,-500.0,0.00027397,2]
[355743749,1741525760862,-282.59148983,0.00027397,2]
[355743750,1741525760884,-5000.0,0.00027397,2]
[355743751,1741525760907,-3830.307942,0.00027397,2]
[355743752,1741525760929,-500.0,0.00027525,2]
[355743753,1741525760951,-500.0,0.00027525,2]
[355743754,1741525760973,-500.0,0.00027525,5]
[355743755,1741525760994,-500.0,0.00027525,2]
[355743756,1741525761016,-500.0,0.00027525,5]
[355743757,1741525761037,-639.23073795,0.00027554,5]
[355743758,1741525761059,-500.0,0.00027554,5]
[355743759,1741525761080,-500.0,0.00027554,5]
[355743760,1741525761100,-500.0,0.00027733,5]